fUSD/lending_fUSD_20240714
["ID","MTS","AMOUNT","RATE_DAILY","PERIOD"]
[332088244,1720954260538,-643.02,0.00013917,2]
[332088245,1720954260547,-500.0,0.00013917,2]
[332088246,1720954260558,-500.0,0.00013917,2]
[332088247,1720954260569,-500.0,0.00013917,2]
[332088248,1720954260580,-542.16,0.00013917,2]
[332088249,1720954260590,-500.0,0.00013917,2]
[332088250,1720954260601,-591.06,0.00013917,2]
[332088251,1720954260610,-500.0,0.00013917,2]
[332088252,1720954260620,-766.37,0.00013917,2]
[332088253,1720954260629,-610.43,0.00013917,2]
[332088254,1720954260639,-500.0,0.00013917,2]
[332088255,1720954260648,-500.0,0.00013917,2]
[332088256,1720954260664,-616.31,0.00013917,2]
[332088257,1720954260673,-759.18,0.00013917,2]
[332088258,1720954260683,-500.0,0.00013917,2]
[332088259,1720954260692,-500.0,0.00013917,2]
[332088260,1720954260703,-500.0,0.00013917,2]
[332088261,1720954260712,-500.0,0.00013917,2]
[332088262,1720954260722,-500.0,0.00013917,2]
[332088263,1720954260732,-500.0,0.00013917,2]
[332088264,1720954260741,-500.0,0.00013917,2]
[332088265,1720954260751,-500.0,0.00013917,2]
[332088266,1720954260760,-500.0,0.00013917,2]
[332088267,1720954260769,-500.0,0.00013917,2]
[332088268,1720954260779,-500.0,0.00013917,2]
[332088269,1720954260788,-541.45,0.00013917,2]
[332088270,1720954260798,-500.0,0.00013917,2]
[332088271,1720954260807,-613.68,0.00013917,2]
[332088272,1720954260816,-500.0,0.00013917,2]
[332088273,1720954260826,-500.0,0.00013917,2]
[332088274,1720954260836,-500.0,0.00013917,2]
[332088275,1720954260847,-500.0,0.00013917,2]
[332088276,1720954260856,-695.07,0.00013917,2]
[332088277,1720954260865,-675.47,0.00013917,2]
[332088278,1720954260876,-500.0,0.00013917,2]
[332088279,1720954260886,-547.85,0.00013917,2]
[332088280,1720954260895,-500.0,0.00013917,2]
[332088281,1720954260904,-500.0,0.00013917,2]
[332088282,1720954260914,-500.0,0.00013917,2]
[332088283,1720954260924,-500.0,0.00013917,2]
[332088284,1720954260934,-500.0,0.00013917,2]
[332088285,1720954260943,-500.0,0.00013917,2]
[332088286,1720954260953,-500.0,0.00013917,2]
[332088287,1720954260963,-500.0,0.00013917,2]
[332088288,1720954260972,-500.0,0.00013917,2]
[332088289,1720954260983,-501.0,0.00013917,2]
[332088290,1720954260992,-500.0,0.00013917,2]
[332088291,1720954261001,-500.0,0.00013917,2]
[332088292,1720954261011,-502.14816842,0.00013917,2]
[332088293,1720954261020,-500.0,0.00013917,2]
[332088294,1720954261030,-500.0,0.00013917,2]
[332088295,1720954261039,-500.0,0.00013917,2]
[332088296,1720954261049,-501.09,0.00013917,2]
[332088297,1720954261058,-610.26,0.00013917,2]
[332088298,1720954261068,-500.0,0.00013917,2]
[332088299,1720954261077,-500.0,0.00013917,2]
[332088300,1720954261087,-500.0,0.00013917,2]
[332088301,1720954261097,-500.0,0.00013917,2]
[332088302,1720954261106,-500.0,0.00013917,2]
[332088303,1720954261115,-500.0,0.00013917,2]
[332088304,1720954261124,-500.0,0.00013917,2]
[332088305,1720954261134,-656.47,0.00013917,2]
[332088306,1720954261143,-500.0,0.00013917,2]
[332088307,1720954261153,-500.0,0.00013917,2]
[332088308,1720954261162,-797.49,0.00013917,2]
[332088309,1720954261172,-500.0,0.00013917,2]
[332088310,1720954261181,-500.0,0.00013917,2]
[332088311,1720954261190,-500.0,0.00013917,2]
[332088312,1720954261200,-500.0,0.00013917,2]
[332088313,1720954261209,-717.11,0.00013917,2]
[332088314,1720954261218,-500.0,0.00013917,2]
[332088315,1720954261227,-550.75,0.00013917,2]
[332088316,1720954261237,-500.0,0.00013917,2]
[332088317,1720954261246,-500.0,0.00013917,2]
[332088318,1720954261255,-500.0,0.00013917,2]
[332088319,1720954261264,-500.0,0.00013917,2]
[332088320,1720954261273,-214.82734619,0.00013917,2]
[332088321,1720954261282,-610.43,0.00013917,2]
[332088322,1720954261291,-500.0,0.00013917,2]
[332088323,1720954261301,-500.0,0.00013917,2]
[332088324,1720954261309,-1500.31,0.00013917,2]
[332088325,1720954261319,-500.0,0.00013917,2]
[332088326,1720954261328,-500.0,0.00013917,2]
[332088327,1720954261337,-500.0,0.00013917,2]
[332088328,1720954261346,-1327.48,0.00013917,2]
[332088329,1720954261356,-500.0,0.00013917,2]
[332088330,1720954261366,-963.23,0.00013917,2]
[332088331,1720954261375,-500.0,0.00013917,2]
[332088332,1720954261385,-689.73,0.00013917,2]
[332088333,1720954261394,-500.0,0.00013917,2]
[332088334,1720954261403,-500.0,0.00013917,2]
[332088335,1720954261412,-500.0,0.00013917,2]
[332088336,1720954261422,-735.87,0.00013917,2]
[332088337,1720954261431,-763.04,0.00013917,2]
[332088338,1720954261441,-500.0,0.00013917,2]
[332088339,1720954261451,-500.0,0.00013917,2]
[332088340,1720954261461,-667.68,0.00013917,2]
[332088341,1720954261472,-500.0,0.00013917,2]
[332088342,1720954261483,-958.8,0.00013917,2]
[332088343,1720954261494,-500.0,0.00013917,2]
[332088344,1720954261505,-599.48,0.00013917,2]
[332088345,1720954261516,-500.0,0.00013917,2]
[332088346,1720954261527,-1922.61,0.00013917,2]
[332088347,1720954261538,-500.0,0.00013917,2]
[332088348,1720954261548,-500.0,0.00013917,2]
[332088349,1720954261558,-500.0,0.00013917,2]
[332088350,1720954261568,-502.34,0.00013917,2]
[332088351,1720954261577,-500.0,0.00013917,2]
[332088352,1720954261587,-885.18,0.00013917,2]
[332088353,1720954261598,-512.86641701,0.00013917,2]
[332088354,1720954261608,-500.0,0.00013917,2]
[332088355,1720954261617,-650.46,0.00013917,2]
[332088356,1720954261628,-612.61432162,0.00013917,2]
[332088357,1720954261638,-581.93,0.00013917,2]
[332088358,1720954261647,-590.08,0.00013917,2]
[332088359,1720954261659,-500.0,0.00013917,2]
[332088360,1720954261671,-500.0,0.00013917,2]
[332088361,1720954261680,-500.0,0.00013917,2]
[332088362,1720954261691,-500.0,0.00013917,2]
[332088363,1720954261701,-500.0,0.00013917,2]
[332088364,1720954261711,-500.0,0.00013917,2]
[332088365,1720954261722,-507.38,0.00013917,2]
[332088366,1720954261734,-439.11608463,0.00013917,2]
[332088367,1720954261742,-500.0,0.00013917,2]
[332088368,1720954261751,-500.0,0.00013917,2]
[332088369,1720954261761,-578.63,0.00013917,2]
[332088370,1720954261771,-2945.03,0.00013917,2]
[332088371,1720954261782,-500.0,0.00013917,2]
[332088372,1720954261792,-500.0,0.00013917,2]
[332088373,1720954261801,-500.0,0.00013917,2]
[332088374,1720954261811,-607.81,0.00013917,2]
[332088375,1720954261820,-500.0,0.00013917,2]
[332088376,1720954261830,-500.0,0.00013917,2]
[332088377,1720954261840,-781.69,0.00013917,2]
[332088378,1720954261853,-586.51,0.00013917,2]
[332088379,1720954261862,-500.0,0.00013917,2]
[332088380,1720954261871,-691.66,0.00013917,2]
[332088381,1720954261883,-500.0,0.00013917,2]
[332088382,1720954261891,-500.0,0.00013917,2]
[332088383,1720954261900,-500.0,0.00013917,2]
[332088384,1720954261910,-596.86,0.00013917,2]
[332088385,1720954261920,-500.0,0.00013917,2]
[332088386,1720954261930,-500.0,0.00013917,2]
[332088387,1720954261939,-618.24,0.00013917,2]
[332088388,1720954261949,-746.39,0.00013917,2]
[332088389,1720954261958,-500.0,0.00013917,2]
[332088390,1720954261967,-500.0,0.00013917,2]
[332088391,1720954261977,-584.8677132,0.00013917,2]
[332088392,1720954261987,-500.0,0.00013917,2]
[332088393,1720954261997,-704.02,0.00013917,2]
[332088394,1720954262006,-500.0,0.00013917,2]
[332088395,1720954262015,-500.0,0.00013917,2]
[332088396,1720954262024,-783.84,0.00013917,2]
[332088397,1720954262034,-722.3,0.00013917,2]
[332088398,1720954262043,-624.74,0.00013917,2]
[332088399,1720954262052,-500.0,0.00013917,2]
[332088400,1720954262061,-500.0,0.00013917,2]
[332088401,1720954262070,-500.0,0.00013917,2]
[332088402,1720954262078,-500.0,0.00013917,2]
[332088403,1720954262087,-544.14,0.00013917,2]
[332088404,1720954262097,-500.0,0.00013917,2]
[332088405,1720954262106,-2174.35,0.00013917,2]
[332088406,1720954262115,-500.0,0.00013917,2]
[332088407,1720954262124,-500.0,0.00013917,2]
[332088408,1720954262133,-500.0,0.00013917,2]
[332088409,1720954262142,-500.0,0.00013917,2]
[332088410,1720954262151,-500.0,0.00013917,2]
[332088411,1720954262160,-500.0,0.00013917,2]
[332088412,1720954262169,-579.78,0.00013917,2]
[332088413,1720954262178,-500.0,0.00013917,2]
[332088414,1720954262188,-500.0,0.00013917,2]
[332088415,1720954262198,-719.04,0.00013917,2]
[332088416,1720954262207,-500.0,0.00013917,2]
[332088417,1720954262217,-500.0,0.00013917,2]
[332088418,1720954262226,-500.0,0.00013917,2]
[332088419,1720954262235,-500.0,0.00013917,2]
[332088420,1720954262245,-500.0,0.00013917,2]
[332088421,1720954262255,-500.0,0.00013917,2]
[332088422,1720954262264,-500.0,0.00013917,2]
[332088423,1720954262273,-500.0,0.00013917,2]
[332088424,1720954262283,-500.0,0.00013917,2]
[332088425,1720954262292,-500.0,0.00013917,2]
[332088426,1720954262302,-500.0,0.00013917,2]
[332088427,1720954262313,-500.0,0.00013917,2]
[332088428,1720954262322,-500.0,0.00013917,2]
[332088429,1720954262334,-500.0,0.00013917,2]
[332088430,1720954262346,-500.0,0.00013917,2]
[332088431,1720954262358,-500.0,0.00013917,2]
[332088432,1720954262370,-500.0,0.00013917,2]
[332088433,1720954262384,-3259.74,0.00013917,2]
[332088434,1720954262396,-500.0,0.00013917,2]
[332088435,1720954262407,-500.0,0.00013917,2]
[332088436,1720954262417,-500.0,0.00013917,2]
[332088437,1720954262428,-208.15400611,0.00013951,2]
[332088438,1720954262440,-155.47158257,0.00013957,2]
[332088439,1720954262452,-569.78,0.00013971,2]
[332088440,1720954262463,-500.0,0.00013971,2]
[332088441,1720954262474,-500.0,0.00013971,2]
[332088442,1720954262486,-500.0,0.00013972,2]
[332088443,1720954262497,-500.0,0.00013972,2]
[332088444,1720954262509,-500.0,0.00013972,2]
[332088445,1720954262522,-618.67430595,0.00013972,2]
[332088446,1720954262533,-500.0,0.00013972,2]
[332088447,1720954262545,-500.0,0.00013972,2]
[332088448,1720954262556,-500.0,0.00013972,2]
[332088449,1720954262569,-500.0,0.00013972,2]
[332088450,1720954262583,-500.0,0.00013972,2]
[332088451,1720954262595,-500.0,0.00013972,2]
[332088452,1720954262608,-500.0,0.00013972,2]
[332088453,1720954262619,-500.0,0.00013972,2]
[332088454,1720954262630,-500.0,0.00013972,2]
[332088455,1720954262641,-500.0,0.00013972,2]
[332088456,1720954262653,-507.9,0.00013972,2]
[332088457,1720954262666,-500.0,0.00013972,2]
[332088458,1720954262677,-500.0,0.00013972,2]
[332088459,1720954262688,-417.46815834,0.00013972,2]
[332088460,1720954262700,-500.0,0.00013972,2]
[332088461,1720954262711,-500.0,0.00013972,2]
[332088462,1720954262722,-500.0,0.00013972,2]
[332088463,1720954262734,-500.0,0.00013972,2]
[332088464,1720954262744,-500.0,0.00013972,2]
[332088465,1720954262753,-500.0,0.00013972,2]
[332088466,1720954262764,-500.0,0.00013972,2]
[332088467,1720954262775,-500.0,0.00013972,2]
[332088468,1720954262785,-500.0,0.00013972,2]
[332088469,1720954262797,-500.0,0.00013972,2]
[332088470,1720954262808,-500.0,0.00013972,2]
[332088471,1720954262818,-500.0,0.00013972,2]
[332088472,1720954262830,-500.0,0.00013972,2]
[332088473,1720954262840,-500.0,0.00013972,2]
[332088474,1720954262852,-500.0,0.00013972,2]
[332088475,1720954262863,-469.95002409,0.00013972,2]
[332088476,1720954262875,-500.0,0.00013972,2]
[332088477,1720954262886,-635.19,0.00013972,2]
[332088478,1720954262898,-500.0,0.00013972,2]
[332088479,1720954262909,-500.0,0.00013972,2]
[332088480,1720954262920,-687.3,0.00013972,2]
[332088481,1720954262930,-500.0,0.00013972,2]
[332088482,1720954262939,-500.0,0.00013972,2]
[332088483,1720954262949,-500.0,0.00013972,2]
[332088484,1720954262958,-500.0,0.00013972,2]
[332088485,1720954262967,-500.0,0.00013972,2]
[332088486,1720954262977,-500.0,0.00013972,2]
[332088487,1720954262987,-500.0,0.00013972,2]
[332088488,1720954262998,-500.0,0.00013972,2]
[332088489,1720954263009,-500.0,0.00013972,2]
[332088490,1720954263020,-500.0,0.00013972,2]
[332088491,1720954263032,-717.86,0.00013972,2]
[332088492,1720954263043,-604.75,0.00013972,2]
[332088493,1720954263053,-540.93,0.00013972,2]
[332088494,1720954263063,-654.97,0.00013972,2]
[332088495,1720954263073,-785.99,0.00013972,2]
[332088496,1720954263086,-500.0,0.00013972,2]
[332088497,1720954263098,-500.0,0.00013972,2]
[332088498,1720954263108,-500.0,0.00013972,2]
[332088499,1720954263120,-500.0,0.00013972,2]
[332088500,1720954263131,-500.0,0.00013972,2]
[332088501,1720954263142,-500.0,0.00013972,2]
[332088502,1720954263152,-500.0,0.00013972,2]
[332088503,1720954263162,-500.0,0.00013972,2]
[332088504,1720954263172,-500.0,0.00013972,2]
[332088505,1720954263182,-500.0,0.00013972,2]
[332088506,1720954263192,-500.0,0.00013972,2]
[332088507,1720954263203,-500.0,0.00013972,2]
[332088508,1720954263214,-500.0,0.00013972,2]
[332088509,1720954263225,-500.0,0.00013972,2]
[332088510,1720954263235,-500.0,0.00013972,2]
[332088511,1720954263245,-638.45,0.00013972,2]
[332088512,1720954263256,-542.29,0.00013972,2]
[332088513,1720954263266,-532.31,0.00013972,2]
[332088514,1720954263276,-509.37,0.00013972,2]
[332088515,1720954263287,-500.0,0.00013972,2]
[332088516,1720954263299,-500.0,0.00013972,2]
[332088517,1720954263310,-500.0,0.00013972,2]
[332088518,1720954263320,-500.0,0.00013972,2]
[332088519,1720954263333,-500.0,0.00013972,2]
[332088520,1720954263344,-741.15,0.00013972,2]
[332088521,1720954263355,-500.0,0.00013972,2]
[332088522,1720954263366,-567.62,0.00013972,2]
[332088523,1720954263377,-500.0,0.00013972,2]
[332088524,1720954263388,-500.0,0.00013972,2]
[332088525,1720954263399,-500.0,0.00013972,2]
[332088526,1720954263411,-549.13,0.00013972,2]
[332088527,1720954263421,-757.51,0.00013972,2]
[332088528,1720954263433,-500.0,0.00013972,2]
[332088529,1720954263443,-500.0,0.00013972,2]
[332088530,1720954263455,-500.0,0.00013972,2]
[332088531,1720954263466,-257.88942575,0.00013972,2]
[332088532,1720954263477,-500.0,0.00013972,2]
[332088533,1720954263488,-247.20583511,0.00013972,2]
[332088534,1720954263868,-252.79416489,0.00013972,2]
[332088535,1720954263879,-500.0,0.00013972,2]
[332088536,1720954263890,-500.0,0.00013972,2]
[332088537,1720954263901,-581.28,0.00013972,2]
[332088538,1720954263912,-500.0,0.00013972,2]
[332088539,1720954263923,-275.85,0.00013972,2]
[332088540,1720954263934,-527.94974645,0.00013972,2]
[332088541,1720954263945,-500.0,0.00013972,2]
[332088542,1720954263955,-500.0,0.00013972,2]
[332088543,1720954263966,-500.0,0.00013972,2]
[332088544,1720954263977,-500.0,0.00013972,2]
[332088545,1720954263988,-500.0,0.00013972,2]
[332088546,1720954263999,-500.0,0.00013972,2]
[332088547,1720954264010,-589.19,0.00013972,2]
[332088548,1720954264021,-500.0,0.00013972,2]
[332088549,1720954264031,-500.0,0.00013972,2]
[332088550,1720954264042,-500.0,0.00013972,2]
[332088551,1720954264053,-500.0,0.00013972,2]
[332088552,1720954264063,-500.0,0.00013972,2]
[332088553,1720954264074,-537.94,0.00013972,2]
[332088554,1720954264085,-500.0,0.00013972,2]
[332088555,1720954264095,-500.0,0.00013972,2]
[332088556,1720954264107,-500.0,0.00013972,2]
[332088557,1720954264118,-500.0,0.00013972,2]
[332088558,1720954264129,-594.19173819,0.00013972,2]
[332088559,1720954264143,-577.22,0.00013972,2]
[332088560,1720954264154,-500.0,0.00013972,2]
[332088561,1720954264165,-500.0,0.00013972,2]
[332088562,1720954264175,-500.0,0.00013972,2]
[332088563,1720954264185,-500.0,0.00013972,2]
[332088564,1720954264196,-500.0,0.00013972,2]
[332088565,1720954264207,-500.0,0.00013972,2]
[332088566,1720954264217,-500.0,0.00013972,2]
[332088567,1720954264228,-500.0,0.00013972,2]
[332088568,1720954264239,-500.0,0.00013972,2]
[332088569,1720954264250,-500.0,0.00013972,2]
[332088570,1720954264261,-500.0,0.00013972,2]
[332088571,1720954264272,-500.0,0.00013972,2]
[332088572,1720954264282,-513.34,0.00013972,2]
[332088573,1720954264293,-643.02,0.00013972,2]
[332088574,1720954264303,-500.0,0.00013972,2]
[332088575,1720954264313,-500.0,0.00013972,2]
[332088576,1720954264323,-594.63926472,0.00013972,2]
[332088577,1720954264334,-542.16,0.00013972,2]
[332088578,1720954264345,-500.0,0.00013972,2]
[332088579,1720954264357,-591.06,0.00013972,2]
[332088580,1720954264368,-500.0,0.00013972,2]
[332088581,1720954264378,-766.37,0.00013972,2]
[332088582,1720954264390,-610.43,0.00013972,2]
[332088583,1720954264401,-500.0,0.00013972,2]
[332088584,1720954264411,-500.0,0.00013972,2]
[332088585,1720954264422,-616.31,0.00013972,2]
[332088586,1720954264433,-759.18,0.00013972,2]
[332088587,1720954264444,-500.0,0.00013972,2]
[332088588,1720954264455,-500.0,0.00013972,2]
[332088589,1720954264467,-500.0,0.00013972,2]
[332088590,1720954264479,-500.0,0.00013972,2]
[332088591,1720954264489,-500.0,0.00013972,2]
[332088592,1720954264501,-500.0,0.00013972,2]
[332088593,1720954264511,-500.0,0.00013972,2]
[332088594,1720954264522,-500.0,0.00013972,2]
[332088595,1720954264532,-500.0,0.00013972,2]
[332088596,1720954264543,-500.0,0.00013972,2]
[332088597,1720954264553,-500.0,0.00013972,2]
[332088598,1720954264564,-541.45,0.00013972,2]
[332088599,1720954264574,-500.0,0.00013972,2]
[332088600,1720954264585,-613.68,0.00013972,2]
[332088601,1720954264595,-500.0,0.00013972,2]
[332088602,1720954264607,-500.0,0.00013972,2]
[332088603,1720954264618,-500.0,0.00013972,2]
[332088604,1720954264629,-500.0,0.00013972,2]
[332088605,1720954264640,-695.07,0.00013972,2]
[332088606,1720954264651,-500.0,0.00013972,2]
[332088607,1720954264664,-675.47,0.00013972,2]
[332088608,1720954264674,-547.85,0.00013972,2]
[332088609,1720954264684,-500.0,0.00013972,2]
[332088610,1720954264696,-325.45532825,0.00013972,2]
[332088611,1720954264707,-500.0,0.00013972,2]
[332088612,1720954264718,-500.0,0.00013972,2]
[332088613,1720954264731,-500.0,0.00013972,2]
[332088614,1720954264741,-500.0,0.00013972,2]
[332088615,1720954264751,-500.0,0.00013972,2]
[332088616,1720954264761,-500.0,0.00013972,2]
[332088617,1720954264771,-500.0,0.00013972,2]
[332088618,1720954264782,-501.0,0.00013972,2]
[332088619,1720954264791,-500.0,0.00013972,2]
[332088620,1720954264801,-500.0,0.00013972,2]
[332088621,1720954264812,-500.0,0.00013972,2]
[332088622,1720954264824,-500.0,0.00013972,2]
[332088623,1720954264836,-500.0,0.00013972,2]
[332088624,1720954264846,-501.09,0.00013972,2]
[332088625,1720954264858,-610.26,0.00013972,2]
[332088626,1720954264868,-500.0,0.00013972,2]
[332088627,1720954264878,-500.0,0.00013972,2]
[332088628,1720954264889,-500.0,0.00013972,2]
[332088629,1720954264899,-500.0,0.00013972,2]
[332088630,1720954264910,-500.0,0.00013972,2]
[332088631,1720954264920,-500.0,0.00013972,2]
[332088632,1720954264931,-500.0,0.00013972,2]
[332088633,1720954264941,-656.47,0.00013972,2]
[332088634,1720954264951,-500.0,0.00013972,2]
[332088635,1720954264962,-500.0,0.00013972,2]
[332088636,1720954264972,-797.49,0.00013972,2]
[332088637,1720954264982,-500.0,0.00013972,2]
[332088638,1720954264993,-500.0,0.00013972,2]
[332088639,1720954265003,-500.0,0.00013972,2]
[332088640,1720954265014,-717.11,0.00013972,2]
[332088641,1720954265024,-500.0,0.00013972,2]
[332088642,1720954265035,-500.0,0.00013972,2]
[332088643,1720954265045,-550.75,0.00013972,2]
[332088644,1720954265055,-500.0,0.00013972,2]
[332088645,1720954265065,-500.0,0.00013972,2]
[332088646,1720954265075,-500.0,0.00013972,2]
[332088647,1720954265086,-500.0,0.00013972,2]
[332088648,1720954265096,-610.43,0.00013972,2]
[332088649,1720954265109,-500.0,0.00013972,2]
[332088650,1720954265120,-500.0,0.00013972,2]
[332088651,1720954265131,-1500.31,0.00013972,2]
[332088652,1720954265141,-500.0,0.00013972,2]
[332088653,1720954265151,-500.0,0.00013972,2]
[332088654,1720954265162,-500.0,0.00013972,2]
[332088655,1720954265172,-1327.48,0.00013972,2]
[332088656,1720954265183,-500.0,0.00013972,2]
[332088657,1720954265194,-963.23,0.00013972,2]
[332088658,1720954265205,-500.0,0.00013972,2]
[332088659,1720954265215,-689.73,0.00013972,2]
[332088660,1720954265226,-500.0,0.00013972,2]
[332088661,1720954265237,-500.0,0.00013972,2]
[332088662,1720954265247,-500.0,0.00013972,2]
[332088663,1720954265258,-735.87,0.00013972,2]
[332088664,1720954265268,-763.04,0.00013972,2]
[332088665,1720954265278,-500.0,0.00013972,2]
[332088666,1720954265289,-500.0,0.00013972,2]
[332088667,1720954265299,-667.68,0.00013972,2]
[332088668,1720954265310,-500.0,0.00013972,2]
[332088669,1720954265320,-958.8,0.00013972,2]
[332088670,1720954265331,-500.0,0.00013972,2]
[332088671,1720954265341,-599.48,0.00013972,2]
[332088672,1720954265355,-500.0,0.00013972,2]
[332088673,1720954265365,-1922.61,0.00013972,2]
[332088674,1720954265375,-500.0,0.00013972,2]
[332088675,1720954265385,-500.0,0.00013972,2]
[332088676,1720954265395,-500.0,0.00013972,2]
[332088677,1720954265406,-502.34,0.00013972,2]
[332088678,1720954265416,-500.0,0.00013972,2]
[332088679,1720954265799,-885.18,0.00013972,2]
[332088680,1720954265814,-500.0,0.00013972,2]
[332088681,1720954265824,-650.46,0.00013972,2]
[332088682,1720954265835,-581.93,0.00013972,2]
[332088683,1720954265844,-590.08,0.00013972,2]
[332088684,1720954265856,-500.0,0.00013972,2]
[332088685,1720954265866,-500.0,0.00013972,2]
[332088686,1720954265876,-500.0,0.00013972,2]
[332088687,1720954265885,-500.0,0.00013972,2]
[332088688,1720954265894,-500.0,0.00013972,2]
[332088689,1720954265904,-500.0,0.00013972,2]
[332088690,1720954265914,-507.38,0.00013972,2]
[332088691,1720954265923,-500.0,0.00013972,2]
[332088692,1720954265933,-500.0,0.00013972,2]
[332088693,1720954265942,-578.63,0.00013972,2]
[332088694,1720954265952,-2945.03,0.00013972,2]
[332088695,1720954265961,-500.0,0.00013972,2]
[332088696,1720954265972,-500.0,0.00013972,2]
[332088697,1720954265982,-500.0,0.00013972,2]
[332088698,1720954265991,-607.81,0.00013972,2]
[332088699,1720954266000,-500.0,0.00013972,2]
[332088700,1720954266010,-500.0,0.00013972,2]
[332088701,1720954266019,-781.69,0.00013972,2]
[332088702,1720954266029,-586.51,0.00013972,2]
[332088703,1720954266039,-500.0,0.00013972,2]
[332088704,1720954266048,-691.66,0.00013972,2]
[332088705,1720954266058,-500.0,0.00013972,2]
[332088706,1720954266067,-500.0,0.00013972,2]
[332088707,1720954266076,-500.0,0.00013972,2]
[332088708,1720954266086,-596.86,0.00013972,2]
[332088709,1720954266095,-500.0,0.00013972,2]
[332088710,1720954266106,-500.0,0.00013972,2]
[332088711,1720954266116,-618.24,0.00013972,2]
[332088712,1720954266125,-746.39,0.00013972,2]
[332088713,1720954266135,-500.0,0.00013972,2]
[332088714,1720954266144,-500.0,0.00013972,2]
[332088715,1720954266154,-500.0,0.00013972,2]
[332088716,1720954266163,-704.02,0.00013972,2]
[332088717,1720954266174,-500.0,0.00013972,2]
[332088718,1720954266183,-500.0,0.00013972,2]
[332088719,1720954266194,-783.84,0.00013972,2]
[332088720,1720954266204,-722.3,0.00013972,2]
[332088721,1720954266214,-624.74,0.00013972,2]
[332088722,1720954266224,-500.0,0.00013972,2]
[332088723,1720954266235,-500.0,0.00013972,2]
[332088724,1720954266245,-500.0,0.00013972,2]
[332088725,1720954266254,-500.0,0.00013972,2]
[332088726,1720954266263,-544.14,0.00013972,2]
[332088727,1720954266273,-500.0,0.00013972,2]
[332088728,1720954266281,-2174.35,0.00013972,2]
[332088729,1720954266291,-500.0,0.00013972,2]
[332088730,1720954266300,-500.0,0.00013972,2]
[332088731,1720954266309,-500.0,0.00013972,2]
[332088732,1720954266318,-500.0,0.00013972,2]
[332088733,1720954266328,-500.0,0.00013972,2]
[332088734,1720954266337,-500.0,0.00013972,2]
[332088735,1720954266346,-579.78,0.00013972,2]
[332088736,1720954266356,-500.0,0.00013972,2]
[332088737,1720954266365,-500.0,0.00013972,2]
[332088738,1720954266374,-706.02587626,0.00013972,2]
[332088739,1720954266411,-500.0,0.00013698,2]
[332088740,1720954266421,-114.29174979,0.00013917,2]
[332088741,1720954266432,-480.67825021,0.00013917,2]
[332088742,1720954266441,-13.01412374,0.00013972,2]
[332088743,1720954266450,-218.13274963,0.00013972,2]